[Event "2nd Irena Warakomska Memorial-B"]
[Site "Suwalki"]
[Date "2018.08.05"]
[Round "6"]
[White "Shamatava, Nikolozi"]
[Black "Zianowicz, Dominik"]
[Result "1-0"]
[ECO "E06"]
[WhiteElo "1676"]
[BlackElo "1950"]
[Annotator "NA"]
[PlyCount "73"]
[EventDate "2018.08.01"]
[EventType "swiss"]
[EventCountry "POL"]
[SourceTitle "playchess.com"]
[Source "ChessBase"]
[SourceQuality "1"]
[TimeControl "40/5400+30:1800+30"]

1. d4 {[%emt 0:00:00]} d5 {[%emt 0:00:00]} 2. c4 {[%emt 0:00:00]} e6 {[%emt 0:00:00]} 3. Nf3 {[%emt 0:00:00]} Be7 {[%emt 0:00:10]} 4. g3 {[%emt 0:00:03]} Nf6 {[%emt 0:00:25]} 5. Bg2 {[%emt 0:00:02]} O-O {[%emt 0:00:15]} 6. O-O {[%emt 0:00:07]} dxc4 {[%emt 0:02:17]} 7. Qc2 {[%emt 0:02:37]} c6 {[%emt 0:03:09]} 8. Qxc4 {[%emt 0:00:53]} Nbd7 {[%emt 0:00:56]} 9. Qc2 {[%emt 0:02:00]} Qc7 {[%emt 0:00:42]} 10. Nc3 {[%emt 0:02:20]} a6 {[%emt 0:06:35]} 11. Bf4 {[%emt 0:03:13]} Bd6 {[%emt 0:00:14]} 12. Bxd6 {[%emt 0:04:52]} Qxd6 {[%emt 0:00:13]} 13. Na4 {[%emt 0:03:16]} Re8 {[%emt 0:08:59]} 14. Rfd1 {[%emt 0:01:54]} Qc7 {[%emt 0:00:57]} 15. Rac1 {[%emt 0:07:16]} e5 16. d5 {[%emt 0:06:13]} Nb8 {[%emt 0:15:17]} 17. Nd2 {[%emt 0:14:40]} b5 {[%emt 0:10:12]} 18. Nc3 {[%emt 0:05:39]} Bb7 {[%emt 0:17:28]} 19. Nde4 {[%emt 0:03:20]} Nfd7 20. Nd6 {[%emt 0:06:21]} Qxd6 {[%emt 0:18:09]} 21. dxc6 {[%emt 0:00:06]} Qc7 {[%emt 0:01:59]} 22. cxb7 {[%emt 0:00:33]} Ra7 23. Ne4 {[%emt 0:03:22]} Qxc2 {[%emt 0:02:20]} 24. Rxc2 {[%emt 0:00:03]} a5 {[%emt 0:02:25]} 25. Nd6 {[%emt 0:00:47]} Rf8 {[%emt 0:00:11]} 26. Bd5 {[%emt 0:00:20]} Nb6 {[%emt 0:01:07]} 27. Rc8 {[%emt 0:03:46]} Nxd5 {[%emt 0:03:09]} 28. Rxd5 {[%emt 0:00:06]} Ra6 {[%emt 0:02:27]} 29. Nf5 {[%emt 0:00:24]} Re6 {[%emt 0:00:16]} 30. Rdd8 {[%emt 0:00:05]} Nd7 {[%emt 0:01:21]} 31. Rxf8+ {[%emt 0:00:11]} Nxf8 {[%emt 0:00:07]} 32. b8=Q {[%emt 0:00:14]} h6 {[%emt 0:00:10]} 33. Rxf8+ {[%emt 0:00:09]} Kh7 {[%emt 0:00:11]} 34. Nh4 {[%emt 0:00:04]} g5 {[%emt 0:00:12]} 35. Rh8+ {[%emt 0:00:07]} Kg7 {[%emt 0:00:05]} 36. Qf8+ {[%emt 0:00:08]} Kf6 {[%emt 0:00:05]} 37. Rxh6# {[%emt 0:00:07]} 1-0

[Event "2nd Irena Warakomska Memorial-B"]
[Site "Suwalki"]
[Date "2018.08.06"]
[Round "7"]
[White "Kindler, Przemyslaw"]
[Black "Marinc, Damir"]
[Result "1-0"]
[ECO "C00"]
[WhiteElo "2086"]
[BlackElo "1931"]
[Annotator "NA"]
[PlyCount "105"]
[EventDate "2018.08.01"]
[EventType "swiss"]
[EventCountry "POL"]
[SourceTitle "playchess.com"]
[Source "ChessBase"]
[SourceQuality "1"]
[TimeControl "40/5400+30:1800+30"]

1. e4 e6 {[%emt 0:00:53]} 2. d3 {[%emt 0:00:00]} d5 {[%emt 0:00:06]} 3. Nd2 {[%emt 0:00:00]} Nc6 {[%emt 0:00:18]} 4. g3 Nf6 {[%emt 0:00:23]} 5. Bg2 {[%emt 0:00:00]} dxe4 {[%emt 0:00:07]} 6. Nxe4 {[%emt 0:00:00]} Nxe4 {[%emt 0:01:54]} 7. Bxe4 {[%emt 0:04:13]} Qf6 8. c3 {[%emt 0:00:22]} e5 {[%emt 0:04:44]} 9. Be3 {[%emt 0:06:02]} Bd6 {[%emt 0:09:14]} 10. h3 {[%emt 0:06:53]} Qe7 {[%emt 0:09:23]} 11. g4 {[%emt 0:07:22]} Nd8 {[%emt 0:07:51]} 12. Qf3 {[%emt 0:00:32]} O-O {[%emt 0:05:39]} 13. O-O-O {[%emt 0:01:24]} Be6 14. Kb1 {[%emt 0:01:49]} Qe8 {[%emt 0:06:45]} 15. Ne2 Qa4 16. Nc1 {[%emt 0:00:36]} Bd7 {[%emt 0:13:13]} 17. d4 {[%emt 0:01:16]} exd4 {[%emt 0:07:58]} 18. Rxd4 {[%emt 0:01:35]} Qa6 {[%emt 0:02:02]} 19. Rhd1 {[%emt 0:03:17]} Bc6 {[%emt 0:02:38]} 20. Nb3 {[%emt 0:06:58]} Ne6 21. Qf5 {[%emt 0:00:08]} Bxe4+ {[%emt 0:02:53]} 22. Rxe4 {[%emt 0:18:43]} Qe2 {[%emt 0:10:53]} 23. Kc1 {[%emt 0:02:52]} Rad8 {[%emt 0:01:19]} 24. Bd4 {[%emt 0:00:31]} Nxd4 {[%emt 0:01:44]} 25. Nxd4 {[%emt 0:01:39]} Qa6 {[%emt 0:00:30]} 26. Kb1 {[%emt 0:00:30]} Qb6 {[%emt 0:00:30]} 27. Nb3 {[%emt 0:03:09]} g6 {[%emt 0:07:42]} 28. Qf3 {[%emt 0:03:44]} a5 {[%emt 0:01:12]} 29. Rd5 {[%emt 0:02:04]} Qc6 {[%emt 0:00:58]} 30. Qd3 {[%emt 0:00:17]} Be7 31. Rxd8 {[%emt 0:00:02]} Rxd8 {[%emt 0:00:34]} 32. Nd4 {[%emt 0:12:23]} Bc5 33. f4 {[%emt 0:00:01]} Bxd4 {[%emt 0:02:09]} 34. cxd4 {[%emt 0:00:47]} Qd5 {[%emt 0:01:43]} 35. Qe3 Qb5 36. a3 {[%emt 0:07:24]} a4 {[%emt 0:00:29]} 37. Kc2 {[%emt 0:00:33]} Qc6+ {[%emt 0:01:16]} 38. Kd2 {[%emt 0:01:40]} Qb5 {[%emt 0:00:52]} 39. Qc3 {[%emt 0:00:00]} c6 {[%emt 0:00:00]} 40. Ke1 {[%emt 0:00:00]} Qd5 {[%emt 0:00:00]} 41. Qe3 {[%emt 0:03:27]} Qa2 {[%emt 0:15:04]} 42. Qe2 {[%emt 0:06:13]} Qb3 43. f5 {[%emt 0:00:03]} Qxh3 {[%emt 0:07:53]} 44. Re8+ {[%emt 0:00:03]} Rxe8 45. Qxe8+ {[%emt 0:00:03]} Kg7 {[%emt 0:00:37]} 46. Qe5+ {[%emt 0:02:55]} Kg8 {[%emt 0:03:34]} 47. f6 {[%emt 0:00:09]} Qh4+ {[%emt 0:00:51]} 48. Kd2 {[%emt 0:00:21]} Qf2+ {[%emt 0:00:58]} 49. Kc3 {[%emt 0:00:17]} Qf3+ 50. Kb4 {[%emt 0:00:00]} Qb3+ {[%emt 0:01:27]} 51. Kc5 {[%emt 0:00:03]} Qb5+ {[%emt 0:01:58]} 52. Kd6 {[%emt 0:00:01]} Qxe5+ {[%emt 0:00:46]} 53. dxe5 {[%emt 0:00:04]} 1-0

[Event "2nd Irena Warakomska Memorial-B"]
[Site "Suwalki"]
[Date "2018.08.06"]
[Round "7"]
[White "Kowalec, Maciej"]
[Black "Samborski, Henryk"]
[Result "1/2-1/2"]
[ECO "E18"]
[WhiteElo "2065"]
[BlackElo "2098"]
[Annotator "NA"]
[PlyCount "46"]
[EventDate "2018.08.01"]
[EventType "swiss"]
[EventCountry "POL"]
[SourceTitle "playchess.com"]
[Source "ChessBase"]
[SourceQuality "1"]
[TimeControl "40/5400+30:1800+30"]

1. d4 {[%emt 0:00:03]} Nf6 {[%emt 0:00:00]} 2. Nf3 {[%emt 0:00:24]} e6 {[%emt 0:00:00]} 3. c4 {[%emt 0:00:21]} b6 {[%emt 0:00:12]} 4. g3 {[%emt 0:00:31]} Bb7 {[%emt 0:00:09]} 5. Bg2 {[%emt 0:00:14]} Be7 {[%emt 0:01:00]} 6. O-O {[%emt 0:01:16]} O-O {[%emt 0:00:21]} 7. Nc3 {[%emt 0:00:33]} Ne4 {[%emt 0:00:30]} 8. Bd2 {[%emt 0:02:49]} c5 {[%emt 0:02:35]} 9. d5 {[%emt 0:04:25]} exd5 {[%emt 0:01:22]} 10. Nxd5 {[%emt 0:08:55]} Bxd5 {[%emt 0:00:26]} 11. cxd5 {[%emt 0:00:10]} Nxd2 {[%emt 0:00:15]} 12. Nxd2 {[%emt 0:01:25]} d6 {[%emt 0:00:21]} 13. e4 {[%emt 0:01:45]} Bf6 {[%emt 0:07:54]} 14. Qc2 {[%emt 0:03:52]} g6 {[%emt 0:11:08]} 15. f4 {[%emt 0:03:31]} Nd7 {[%emt 0:05:22]} 16. Nc4 {[%emt 0:02:17]} Bd4+ {[%emt 0:02:14]} 17. Kh1 {[%emt 0:00:52]} Nf6 {[%emt 0:00:29]} 18. Rae1 {[%emt 0:13:30]} Rb8 {[%emt 0:18:29]} 19. Nxd6 {[%emt 0:15:04]} Qxd6 {[%emt 0:00:22]} 20. e5 {[%emt 0:00:10]} Qd7 {[%emt 0:02:21]} 21. exf6 {[%emt 0:01:27]} Bxf6 {[%emt 0:03:59]} 22. f5 {[%emt 0:00:54]} g5 {[%emt 0:01:05]} 23. b3 Rbe8 {[%emt 0:01:10]} 1/2-1/2

[Event "2nd Irena Warakomska Memorial-B"]
[Site "Suwalki"]
[Date "2018.08.06"]
[Round "7"]
[White "Nikitin, Aleksander I"]
[Black "Hrymowicz, Artur"]
[Result "1-0"]
[ECO "A05"]
[WhiteElo "2036"]
[BlackElo "2038"]
[Annotator "NA"]
[PlyCount "105"]
[EventDate "2018.08.01"]
[EventType "swiss"]
[EventCountry "POL"]
[SourceTitle "playchess.com"]
[Source "ChessBase"]
[SourceQuality "1"]
[TimeControl "40/5400+30:1800+30"]

1. Nf3 {[%emt 0:00:00]} Nf6 {[%emt 0:00:00]} 2. g3 {[%emt 0:00:00]} b6 {[%emt 0:00:00]} 3. Bg2 {[%emt 0:00:00]} Bb7 {[%emt 0:00:00]} 4. d3 {[%emt 0:00:00]} e6 {[%emt 0:00:31]} 5. e4 {[%emt 0:00:26]} d5 {[%emt 0:01:27]} 6. e5 {[%emt 0:00:44]} Nfd7 {[%emt 0:00:26]} 7. O-O {[%emt 0:00:10]} Be7 {[%emt 0:01:04]} 8. Qe2 {[%emt 0:01:14]} c5 {[%emt 0:01:21]} 9. c3 {[%emt 0:00:26]} O-O {[%emt 0:00:59]} 10. h4 {[%emt 0:00:44]} Nc6 {[%emt 0:01:11]} 11. Re1 {[%emt 0:00:33]} b5 {[%emt 0:08:54]} 12. Nbd2 {[%emt 0:07:10]} Qb6 {[%emt 0:05:47]} 13. Nf1 {[%emt 0:02:04]} a5 {[%emt 0:04:37]} 14. Bf4 {[%emt 0:01:19]} b4 {[%emt 0:03:34]} 15. c4 {[%emt 0:08:30]} dxc4 {[%emt 0:12:42]} 16. dxc4 {[%emt 0:02:49]} Nd4 {[%emt 0:00:58]} 17. Nxd4 {[%emt 0:15:10]} cxd4 {[%emt 0:06:25]} 18. Bxb7 {[%emt 0:01:28]} Qxb7 {[%emt 0:00:07]} 19. Rad1 {[%emt 0:01:30]} Bc5 {[%emt 0:04:23]} 20. Nd2 {[%emt 0:04:37]} Qb6 {[%emt 0:06:54]} 21. Ne4 {[%emt 0:06:20]} Rad8 {[%emt 0:05:55]} 22. Qg4 {[%emt 0:11:00]} Kh8 {[%emt 0:03:42]} 23. Ng5 {[%emt 0:12:11]} Be7 {[%emt 0:03:46]} 24. Nf3 {[%emt 0:07:14]} Nb8 {[%emt 0:06:30]} 25. Bg5 {[%emt 0:01:19]} Rfe8 {[%emt 0:11:55]} 26. Nxd4 {[%emt 0:09:21]} Nd7 {[%emt 0:05:35]} 27. Nb5 {[%emt 0:02:20]} Qc5 {[%emt 0:02:25]} 28. Nd6 {[%emt 0:02:57]} Bxd6 {[%emt 0:01:06]} 29. Bxd8 {[%emt 0:01:54]} Nxe5 {[%emt 0:01:12]} 30. Qe4 {[%emt 0:00:43]} f6 {[%emt 0:00:49]} 31. Bxa5 {[%emt 0:00:36]} Be7 {[%emt 0:00:37]} 32. Bxb4 {[%emt 0:00:33]} Qxb4 {[%emt 0:00:01]} 33. b3 {[%emt 0:00:28]} Bc5 {[%emt 0:00:46]} 34. Re2 {[%emt 0:00:27]} Qc3 {[%emt 0:00:31]} 35. Kg2 {[%emt 0:00:09]} h6 {[%emt 0:00:41]} 36. h5 {[%emt 0:00:14]} Qa5 {[%emt 0:00:24]} 37. Kh3 {[%emt 0:00:12]} Qb6 {[%emt 0:00:35]} 38. f4 {[%emt 0:00:14]} Nc6 {[%emt 0:00:36]} 39. Rd7 {[%emt 0:00:40]} f5 {[%emt 0:00:30]} 40. Qd3 {[%emt 0:00:00]} Nb4 {[%emt 0:00:00]} 41. Qc3 {[%emt 0:02:23]} Be7 {[%emt 0:05:28]} 42. Qf3 {[%emt 0:03:28]} Bf6 {[%emt 0:04:52]} 43. a3 {[%emt 0:06:40]} Qc6 {[%emt 0:02:18]} 44. Qxc6 {[%emt 0:03:58]} Nxc6 {[%emt 0:00:02]} 45. b4 {[%emt 0:03:01]} Nd4 {[%emt 0:05:39]} 46. Re3 {[%emt 0:06:14]} Nc2 {[%emt 0:01:07]} 47. Red3 {[%emt 0:01:03]} Ra8 {[%emt 0:00:19]} 48. c5 {[%emt 0:02:47]} Nxa3 {[%emt 0:01:04]} 49. c6 {[%emt 0:00:30]} Kh7 {[%emt 0:03:27]} 50. Rb7 {[%emt 0:03:32]} Nc2 {[%emt 0:05:24]} 51. c7 {[%emt 0:01:18]} Rc8 {[%emt 0:00:06]} 52. Rd7 {[%emt 0:00:38]} Nxb4 {[%emt 0:05:28]} 53. Rxb4 {[%emt 0:00:30]} 1-0

[Event "2nd Irena Warakomska Memorial-B"]
[Site "Suwalki"]
[Date "2018.08.06"]
[Round "7"]
[White "Krasiewicz, Robert"]
[Black "Koziej, Maciej"]
[Result "0-1"]
[ECO "A11"]
[WhiteElo "1923"]
[BlackElo "2027"]
[Annotator "NA"]
[PlyCount "58"]
[EventDate "2018.08.01"]
[EventType "swiss"]
[EventCountry "POL"]
[SourceTitle "playchess.com"]
[Source "ChessBase"]
[SourceQuality "1"]
[TimeControl "40/5400+30:1800+30"]

1. c4 {[%emt 0:00:39]} c6 {[%emt 0:00:00]} 2. g3 {[%emt 0:00:17]} d5 {[%emt 0:00:00]} 3. Bg2 {[%emt 0:01:06]} Nf6 {[%emt 0:05:11]} 4. Nf3 {[%emt 0:00:28]} dxc4 {[%emt 0:04:42]} 5. a4 {[%emt 0:03:06]} Be6 {[%emt 0:07:29]} 6. Na3 {[%emt 0:00:31]} Na6 {[%emt 0:12:58]} 7. Ng5 {[%emt 0:10:57]} Bf5 {[%emt 0:00:33]} 8. Nxc4 {[%emt 0:00:58]} h6 {[%emt 0:01:16]} 9. Nxf7 {[%emt 0:37:14]} Kxf7 {[%emt 0:01:17]} 10. Ne5+ {[%emt 0:00:02]} Kg8 {[%emt 0:01:49]} 11. Qb3+ {[%emt 0:00:18]} Kh7 {[%emt 0:00:07]} 12. Qxb7 {[%emt 0:06:35]} Nc5 {[%emt 0:08:24]} 13. Qxc6 {[%emt 0:03:30]} Rc8 {[%emt 0:00:08]} 14. Qb5 {[%emt 0:00:08]} a6 {[%emt 0:03:53]} 15. Qc4 {[%emt 0:14:57]} Nd3+ {[%emt 0:01:03]} 16. exd3 {[%emt 0:00:01]} Rxc4 {[%emt 0:00:04]} 17. dxc4 {[%emt 0:00:07]} Qd4 {[%emt 0:03:48]} 18. f4 {[%emt 0:02:03]} e6 {[%emt 0:01:17]} 19. Rf1 {[%emt 0:06:16]} Bc5 {[%emt 0:00:57]} 20. a5 {[%emt 0:00:20]} Ng4 {[%emt 0:03:14]} 21. Nxg4 {[%emt 0:03:21]} Bxg4 {[%emt 0:00:06]} 22. h3 {[%emt 0:00:08]} Bf5 {[%emt 0:00:13]} 23. Ra4 {[%emt 0:00:16]} Bd3 {[%emt 0:01:25]} 24. Rf3 {[%emt 0:01:00]} Be4 {[%emt 0:00:42]} 25. Re3 {[%emt 0:01:10]} Bxg2 {[%emt 0:00:05]} 26. b4 {[%emt 0:00:10]} Bc6 {[%emt 0:00:30]} 27. Raa3 {[%emt 0:02:10]} Bxb4 {[%emt 0:00:14]} 28. Rab3 {[%emt 0:00:04]} Qxc4 {[%emt 0:01:41]} 29. Bb2 {[%emt 0:00:19]} Bb5 {[%emt 0:00:24]} 0-1

[Event "2nd Irena Warakomska Memorial-B"]
[Site "Suwalki"]
[Date "2018.08.06"]
[Round "7"]
[White "Shamatava, Nikolozi"]
[Black "Rak, Tomasz"]
[Result "1/2-1/2"]
[ECO "A48"]
[WhiteElo "1676"]
[BlackElo "2007"]
[Annotator "NA"]
[PlyCount "170"]
[EventDate "2018.08.01"]
[EventType "swiss"]
[EventCountry "POL"]
[SourceTitle "playchess.com"]
[Source "ChessBase"]
[SourceQuality "1"]
[TimeControl "40/5400+30:1800+30"]

1. d4 {[%emt 0:00:00]} Nf6 {[%emt 0:01:21]} 2. Nf3 {[%emt 0:00:00]} g6 {[%emt 0:00:06]} 3. Bg5 {[%emt 0:00:00]} Bg7 {[%emt 0:00:29]} 4. Nbd2 {[%emt 0:00:00]} h6 {[%emt 0:02:05]} 5. Bxf6 {[%emt 0:01:55]} Bxf6 {[%emt 0:00:16]} 6. e3 {[%emt 0:01:06]} d6 {[%emt 0:03:00]} 7. Bd3 {[%emt 0:01:53]} Nc6 {[%emt 0:04:06]} 8. O-O {[%emt 0:05:18]} e5 {[%emt 0:01:49]} 9. c3 {[%emt 0:08:36]} O-O {[%emt 0:03:42]} 10. dxe5 {[%emt 0:09:16]} dxe5 {[%emt 0:00:53]} 11. Bb5 {[%emt 0:04:39]} Qe7 {[%emt 0:09:38]} 12. Qe2 {[%emt 0:10:43]} Bd7 {[%emt 0:04:29]} 13. Rfd1 {[%emt 0:06:35]} Rad8 {[%emt 0:03:30]} 14. e4 {[%emt 0:06:02]} a6 {[%emt 0:03:21]} 15. Bc4 {[%emt 0:04:27]} b5 {[%emt 0:13:33]} 16. Bd3 {[%emt 0:01:27]} Nb8 {[%emt 0:02:05]} 17. Nf1 {[%emt 0:17:00]} Be6 {[%emt 0:01:57]} 18. c4 {[%emt 0:00:35]} b4 {[%emt 0:06:59]} 19. Ne3 {[%emt 0:01:42]} c6 {[%emt 0:00:37]} 20. a3 {[%emt 0:02:32]} bxa3 {[%emt 0:06:52]} 21. Rxa3 {[%emt 0:00:29]} Bg7 {[%emt 0:00:17]} 22. Rb1 {[%emt 0:03:32]} f5 {[%emt 0:01:47]} 23. b4 {[%emt 0:01:20]} f4 {[%emt 0:00:49]} 24. Nf1 {[%emt 0:00:42]} g5 {[%emt 0:01:17]} 25. h3 {[%emt 0:00:21]} h5 {[%emt 0:01:29]} 26. N3h2 {[%emt 0:00:46]} g4 {[%emt 0:03:20]} 27. hxg4 {[%emt 0:00:54]} hxg4 {[%emt 0:00:01]} 28. Nxg4 {[%emt 0:00:26]} Rxd3 {[%emt 0:00:32]} 29. Rxd3 {[%emt 0:01:43]} Bxc4 {[%emt 0:00:09]} 30. Nd2 {[%emt 0:06:21]} Bxd3 {[%emt 0:00:31]} 31. Qxd3 {[%emt 0:00:01]} Rd8 {[%emt 0:03:43]} 32. Qb3+ {[%emt 0:00:20]} Qf7 {[%emt 0:00:19]} 33. Nc4 {[%emt 0:00:23]} Rd4 {[%emt 0:01:09]} 34. Ngxe5 {[%emt 0:00:48]} Bxe5 {[%emt 0:00:10]} 35. Nxe5 {[%emt 0:00:03]} Qxb3 {[%emt 0:00:35]} 36. Rxb3 {[%emt 0:00:01]} Rxe4 {[%emt 0:00:18]} 37. Nd3 {[%emt 0:00:14]} Nd7 {[%emt 0:01:20]} 38. Ra3 {[%emt 0:01:12]} Rd4 {[%emt 0:00:25]} 39. Kf1 {[%emt 0:00:44]} Nf6 {[%emt 0:07:11]} 40. Ke2 {[%emt 0:00:00]} Nd5 {[%emt 0:00:00]} 41. Rxa6 {[%emt 0:07:51]} Nxb4 {[%emt 0:04:41]} 42. Nxb4 {[%emt 0:01:05]} Rxb4 {[%emt 0:00:02]} 43. Rxc6 {[%emt 0:00:04]} Kg7 {[%emt 0:00:31]} 44. f3 {[%emt 0:00:26]} Rb2+ {[%emt 0:02:15]} 45. Kf1 Rb8 {[%emt 0:02:49]} 46. Kg1 {[%emt 0:00:42]} Ra8 {[%emt 0:00:39]} 47. Rc4 {[%emt 0:00:10]} Rf8 {[%emt 0:00:15]} 48. Kh2 {[%emt 0:00:21]} Rh8+ {[%emt 0:00:11]} 49. Kg1 {[%emt 0:00:01]} Rf8 {[%emt 0:00:09]} 50. Kf2 {[%emt 0:00:05]} Kg6 {[%emt 0:00:35]} 51. g3 {[%emt 0:00:05]} fxg3+ {[%emt 0:00:22]} 52. Kxg3 {[%emt 0:00:04]} Rf5 {[%emt 0:04:06]} 53. f4 {[%emt 0:00:26]} Rf6 {[%emt 0:00:19]} 54. Kg4 {[%emt 0:00:20]} Ra6 {[%emt 0:00:13]} 55. Rc8 {[%emt 0:00:07]} Rb6 {[%emt 0:00:36]} 56. Rg8+ {[%emt 0:00:14]} Kf7 {[%emt 0:00:27]} 57. Rh8 {[%emt 0:00:26]} Rg6+ {[%emt 0:01:50]} 58. Kf5 {[%emt 0:00:10]} Rf6+ {[%emt 0:00:09]} 59. Ke5 {[%emt 0:00:03]} Re6+ {[%emt 0:00:05]} 60. Kd5 {[%emt 0:00:10]} Re1 {[%emt 0:03:27]} 61. Rh6 {[%emt 0:00:49]} Re2 {[%emt 0:00:31]} 62. Ra6 {[%emt 0:00:55]} Re1 {[%emt 0:01:56]} 63. Kd4 {[%emt 0:01:04]} Re2 {[%emt 0:00:19]} 64. Kd3 {[%emt 0:00:04]} Re1 {[%emt 0:01:29]} 65. Rb6 {[%emt 0:00:09]} Re8 {[%emt 0:00:51]} 66. Rb5 {[%emt 0:01:02]} Kf6 {[%emt 0:00:24]} 67. Kd4 {[%emt 0:00:14]} Re1 {[%emt 0:00:35]} 68. Rb8 {[%emt 0:00:23]} Kf7 {[%emt 0:01:06]} 69. Rb7+ {[%emt 0:00:06]} Kf6 {[%emt 0:00:15]} 70. Ra7 {[%emt 0:00:04]} Re2 {[%emt 0:00:20]} 71. Kd3 {[%emt 0:00:05]} Re1 {[%emt 0:00:35]} 72. Ra8 {[%emt 0:00:15]} Kf7 {[%emt 0:00:27]} 73. Ra5 {[%emt 0:00:32]} Kf6 {[%emt 0:00:28]} 74. Kd4 {[%emt 0:00:05]} Re2 {[%emt 0:00:25]} 75. Re5 {[%emt 0:00:37]} Rxe5 {[%emt 0:00:57]} 76. fxe5+ {[%emt 0:00:04]} Ke6 {[%emt 0:00:24]} 77. Ke4 {[%emt 0:00:06]} Ke7 {[%emt 0:00:31]} 78. Kf5 {[%emt 0:00:06]} Kf7 {[%emt 0:00:30]} 79. e6+ {[%emt 0:00:06]} Ke7 {[%emt 0:00:17]} 80. Ke5 {[%emt 0:00:07]} Ke8 {[%emt 0:00:15]} 81. Kd5 {[%emt 0:00:15]} Ke7 {[%emt 0:00:15]} 82. Ke5 {[%emt 0:00:03]} Ke8 {[%emt 0:01:08]} 83. Kd6 {[%emt 0:00:07]} Kd8 {[%emt 0:00:10]} 84. e7+ {[%emt 0:00:04]} Ke8 {[%emt 0:00:06]} 85. Kc7 {[%emt 0:00:06]} Kxe7 {[%emt 0:00:36]} 1/2-1/2

[Event "2nd Irena Warakomska Memorial-B"]
[Site "Suwalki"]
[Date "2018.08.07"]
[Round "8"]
[White "Samborski, Henryk"]
[Black "Kindler, Przemyslaw"]
[Result "0-1"]
[ECO "A21"]
[WhiteElo "2098"]
[BlackElo "2086"]
[Annotator "NA"]
[PlyCount "110"]
[EventDate "2018.08.01"]
[EventType "swiss"]
[EventCountry "POL"]
[SourceTitle "playchess.com"]
[Source "ChessBase"]
[SourceQuality "1"]
[TimeControl "40/5400+30:1800+30"]

1. Nf3 {[%emt 0:00:00]} d6 {[%emt 0:00:07]} 2. c4 {[%emt 0:00:11]} e5 {[%emt 0:00:14]} 3. Nc3 {[%emt 0:00:46]} Nc6 {[%emt 0:00:37]} 4. d3 {[%emt 0:03:21]} Be7 {[%emt 0:03:42]} 5. g3 {[%emt 0:02:04]} f5 {[%emt 0:03:41]} 6. Bg2 {[%emt 0:00:33]} Nf6 {[%emt 0:00:04]} 7. O-O {[%emt 0:00:41]} O-O {[%emt 0:00:05]} 8. Rb1 {[%emt 0:02:38]} Qe8 {[%emt 0:03:43]} 9. Nd5 {[%emt 0:10:31]} Bd8 {[%emt 0:03:10]} 10. b4 {[%emt 0:04:24]} Ne7 {[%emt 0:05:09]} 11. Nxf6+ {[%emt 0:10:19]} Rxf6 {[%emt 0:00:09]} 12. Bg5 {[%emt 0:00:51]} Rg6 {[%emt 0:01:17]} 13. Bd2 {[%emt 0:03:11]} f4 {[%emt 0:03:42]} 14. d4 {[%emt 0:01:58]} Nf5 {[%emt 0:00:21]} 15. dxe5 {[%emt 0:00:50]} dxe5 {[%emt 0:00:19]} 16. e4 {[%emt 0:07:12]} Nd6 {[%emt 0:03:43]} 17. Qc2 {[%emt 0:16:33]} Bf6 {[%emt 0:00:34]} 18. c5 {[%emt 0:01:38]} Nf7 {[%emt 0:00:01]} 19. Bc3 {[%emt 0:06:34]} Bg4 {[%emt 0:00:37]} 20. Nd2 {[%emt 0:01:47]} Ng5 {[%emt 0:04:22]} 21. f3 {[%emt 0:02:22]} Be6 {[%emt 0:00:48]} 22. g4 {[%emt 0:02:44]} Rh6 {[%emt 0:00:04]} 23. Rf2 {[%emt 0:03:23]} Rd8 {[%emt 0:01:07]} 24. b5 {[%emt 0:00:39]} Qd7 {[%emt 0:03:01]} 25. Nf1 {[%emt 0:00:53]} Qd3 {[%emt 0:07:02]} 26. Be1 {[%emt 0:01:51]} Qxc2 {[%emt 0:01:16]} 27. Rxc2 {[%emt 0:00:03]} Bxg4 {[%emt 0:00:04]} 28. fxg4 {[%emt 0:00:47]} f3 {[%emt 0:00:01]} 29. Bxf3 {[%emt 0:03:32]} Nxf3+ {[%emt 0:00:02]} 30. Kg2 {[%emt 0:00:10]} Rd3 {[%emt 0:00:32]} 31. Bg3 {[%emt 0:01:46]} Nd4 {[%emt 0:00:37]} 32. Rc4 {[%emt 0:01:53]} Ra3 {[%emt 0:00:34]} 33. Rb2 {[%emt 0:00:21]} Rg6 {[%emt 0:00:37]} 34. h3 {[%emt 0:00:52]} h5 {[%emt 0:00:23]} 35. gxh5 {[%emt 0:00:09]} Rg5 36. b6 {[%emt 0:03:22]} axb6 {[%emt 0:00:25]} 37. cxb6 {[%emt 0:00:08]} cxb6 {[%emt 0:00:17]} 38. Rc8+ {[%emt 0:00:53]} Kh7 {[%emt 0:00:04]} 39. Rc7 {[%emt 0:00:12]} Ne6 {[%emt 0:00:27]} 40. Rxb7 {[%emt 0:00:00]} Nf4+ {[%emt 0:00:00]} 41. Kh2 {[%emt 0:06:55]} Rxh5 {[%emt 0:00:11]} 42. Bxf4 {[%emt 0:00:43]} Raxh3+ {[%emt 0:01:01]} 43. Kg2 {[%emt 0:00:19]} exf4 {[%emt 0:00:04]} 44. Rb3 {[%emt 0:00:45]} Rh1 {[%emt 0:00:35]} 45. Rd3 {[%emt 0:03:33]} f3+ {[%emt 0:00:30]} 46. Rxf3 {[%emt 0:00:30]} Bd4 {[%emt 0:00:07]} 47. Ne3 {[%emt 0:01:20]} R5h2+ {[%emt 0:00:03]} 48. Kg3 {[%emt 0:00:17]} Rh3+ {[%emt 0:00:02]} 49. Kg4 {[%emt 0:04:02]} Rxf3 {[%emt 0:00:02]} 50. Kxf3 {[%emt 0:00:19]} Rh3+ {[%emt 0:00:02]} 51. Kf4 {[%emt 0:00:28]} Rxe3 {[%emt 0:00:04]} 52. Rd7 {[%emt 0:00:21]} Bc5 {[%emt 0:00:04]} 53. Rd5 {[%emt 0:00:27]} Re2 {[%emt 0:00:08]} 54. a4 {[%emt 0:00:11]} Ra2 {[%emt 0:00:06]} 55. e5 {[%emt 0:00:14]} Kg6 {[%emt 0:00:24]} 0-1

[Event "2nd Irena Warakomska Memorial-B"]
[Site "Suwalki"]
[Date "2018.08.07"]
[Round "8"]
[White "Szewczyk, Mariusz"]
[Black "Salah, Nadezhda"]
[Result "1-0"]
[ECO "C03"]
[WhiteElo "2094"]
[BlackElo "1963"]
[Annotator "NA"]
[PlyCount "37"]
[EventDate "2018.08.01"]
[EventType "swiss"]
[EventCountry "POL"]
[SourceTitle "playchess.com"]
[Source "ChessBase"]
[SourceQuality "1"]
[TimeControl "40/5400+30:1800+30"]

1. e4 {[%emt 0:00:00]} e6 {[%emt 0:00:00]} 2. d4 {[%emt 0:00:00]} d5 {[%emt 0:00:00]} 3. Nd2 {[%emt 0:00:15]} h6 {[%emt 0:02:06]} 4. e5 {[%emt 0:00:14]} c5 {[%emt 0:07:59]} 5. c3 {[%emt 0:07:22]} Nc6 6. Ndf3 {[%emt 0:01:00]} Bd7 {[%emt 0:07:07]} 7. Bd3 Qb6 8. Ne2 {[%emt 0:01:43]} cxd4 {[%emt 0:22:40]} 9. cxd4 {[%emt 0:02:41]} Bb4+ {[%emt 0:00:21]} 10. Bd2 {[%emt 0:11:50]} Nge7 {[%emt 0:00:59]} 11. O-O {[%emt 0:07:13]} g5 {[%emt 0:17:47]} 12. Bc3 Ng6 13. a3 {[%emt 0:03:55]} Be7 {[%emt 0:00:47]} 14. b4 {[%emt 0:02:03]} g4 {[%emt 0:10:05]} 15. Nd2 Bg5 16. b5 {[%emt 0:02:02]} Nce7 {[%emt 0:02:25]} 17. a4 Kf8 18. Nb3 {[%emt 0:00:51]} Kg7 {[%emt 0:13:02]} 19. Ba5 1-0